fUSD/lending_fUSD_20241206
["ID","MTS","AMOUNT","RATE_DAILY","PERIOD"]
[344446460,1733479840667,-3257.921871,6.979e-05,2]
[344446461,1733479840678,-896.82497611,6.979e-05,2]
[344446462,1733479840689,-383.57266039,6.979e-05,2]
[344446463,1733479840700,-4310.82033528,6.979e-05,2]
[344446464,1733479840710,-1166.0,6.979e-05,2]
[344446465,1733479840719,-294.18266366,6.986e-05,2]
[344446466,1733479840763,-665.98133634,6.986e-05,2]
[344446467,1733479840776,-150.0,6.986e-05,2]
[344446468,1733479840786,-500.0,6.998e-05,2]
[344446469,1733479840795,-145.83934497,6.998e-05,2]
[344446470,1733479840814,-787.09065503,6.998e-05,2]
[344446471,1733479840823,-184.8166313,6.998e-05,2]
[344446472,1733479840832,-500.0,6.998e-05,2]
[344446473,1733479840842,-500.0,6.998e-05,2]
[344446474,1733479840852,-500.0,6.998e-05,2]
[344446475,1733479840861,-500.0,6.998e-05,2]
[344446476,1733479840870,-500.0,6.998e-05,2]
[344446477,1733479840880,-580.18488064,6.998e-05,2]
[344446478,1733479840890,-693.0,6.999e-05,2]
[344446479,1733479840899,-41232.66357168,6.999e-05,2]
[344446480,1733479840914,-1473.36020286,6.999e-05,2]
[344446495,1733479843413,-365.932,6.999e-05,2]
[344446496,1733479843425,-11462.49743688,6.999e-05,2]
[344446497,1733479843436,-5984.96736691,6.999e-05,2]
[344446498,1733479843447,-54396.68312592,6.999e-05,2]
[344446499,1733479843458,-4735.85980153,6.999e-05,2]
[344446500,1733479843470,-10138.5,6.999e-05,2]
[344446501,1733479843486,-4726.0,6.999e-05,2]
[344446502,1733479843597,-965.86038531,6.999e-05,2]
[344446503,1733479843608,-2645.7315848,6.999e-05,2]
[344446504,1733479843630,-3618.90790994,6.999e-05,2]
[344446505,1733479843739,-340.81431219,6.999e-05,2]
[344446513,1733479846340,-1098.0,6.99e-05,2]
[344446514,1733479846350,-4777.0,6.999e-05,2]
[344446515,1733479846362,-23670.477799,6.999e-05,2]
[344446516,1733479846373,-49200.0,6.999e-05,2]
[344446517,1733479846462,-496.38991799,6.999e-05,2]
[344446518,1733479846474,-3283.756254,6.999e-05,2]
[344446519,1733479846738,-10150.47708972,6.999e-05,2]
[344446520,1733479846750,-22167.02970381,6.999e-05,2]
[344446521,1733479846838,-3787.45150283,6.999e-05,2]
[344446525,1733479846874,-800.0,6.999e-05,2]
[344447648,1733479866461,50000.0,0.0001311,28]
[344447651,1733480214763,-588.0,0.00012,10]
[344447652,1733480233070,-590.0,0.00012,10]
[344447655,1733480665421,350.6,5e-05,2]
[344447656,1733480818944,12696.0,0.0001311,28]
[344447657,1733480818971,304.0,0.0001311,28]
[344447660,1733480876793,2696.0,0.0001311,28]
[344447662,1733480917795,10000.0,0.00011,10]
[344447683,1733481032586,339.58566071,7e-06,2]
[344447684,1733481034376,-1500.0,5.986e-05,2]
[344447685,1733481034386,-250.0,5.994e-05,2]
[344447686,1733481034395,-629.35,5.997e-05,2]
[344447687,1733481034405,-300.0,6.005e-05,2]
[344447688,1733481034415,-7378.77654467,6.006e-05,2]
[344447689,1733481034427,-2141.29235814,6.006e-05,2]
[344447976,1733481037474,10000.0,0.000106,20]
[344447980,1733481037499,-14379.93109719,6.006e-05,2]
[344447982,1733481037508,-250.0,6.026e-05,2]
[344447984,1733481037517,-308.42,6.051e-05,2]
[344447986,1733481037526,-200.0,6.101e-05,2]
[344447988,1733481037536,-420.0,6.606e-05,2]
[344447990,1733481037545,-1586.0,6.7e-05,2]
[344447992,1733481037554,-150.0,6.712e-05,2]
[344447994,1733481037563,-629.35,6.747e-05,2]
[344447996,1733481037572,-1824.50607392,6.798e-05,2]
[344447998,1733481037583,-150.0,6.798e-05,2]
[344448000,1733481037592,-2313.068841,6.799e-05,2]
[344448012,1733481037695,-5703.73647642,6.799e-05,2]
[344448014,1733481037706,-272.33300025,6.799e-05,2]
[344448026,1733481037807,-1456.98265862,6.799e-05,2]
[344448213,1733481039617,-1192.0,6.799e-05,2]
[344448219,1733481039665,-60701.18386772,6.799e-05,2]
[344448221,1733481039675,-308.42,6.808e-05,2]
[344448223,1733481039684,-8858.5443,6.899e-05,2]
[344448225,1733481039694,-2500.0,6.899e-05,2]
[344448227,1733481039704,-1616.32003396,6.899e-05,2]
[344448229,1733481039714,-1616.32003397,6.899e-05,2]
[344448231,1733481039724,-172002.78365859,6.9e-05,2]
[344448268,1733481040056,-120616.0,6.929e-05,2]
[344448270,1733481040068,-629.51,6.935e-05,2]
[344448272,1733481040079,-1148.826,6.95e-05,2]
[344448274,1733481040088,-1034.658,6.959e-05,2]
[344448276,1733481040098,-435.5,6.968e-05,2]
[344448278,1733481040107,-150.0,6.986e-05,2]
[344448280,1733481040116,-19844.9400555,6.998e-05,2]
[344448282,1733481040125,-342.24276451,6.998e-05,2]
[344448284,1733481040135,-500.0,6.998e-05,2]
[344448286,1733481040144,-934.84,6.998e-05,2]
[344448288,1733481040153,-150.0,6.998e-05,2]
[344448290,1733481040162,-150.0,6.998e-05,2]
[344448292,1733481040171,-150.0,6.998e-05,3]
[344448294,1733481040180,-186.89666178,6.998e-05,3]
[344448296,1733481040190,-778.0,6.999e-05,2]
[344448298,1733481040199,-61258.66452415,6.999e-05,2]
[344448300,1733481040211,-86624.02006057,6.999e-05,2]
[344448303,1733481040223,-44943.79759901,6.999e-05,2]
[344448305,1733481040239,-216450.0,6.999e-05,2]
[344448307,1733481040250,-4818.864916,6.999e-05,2]
[344448312,1733481040289,-691.2773428,6.999e-05,2]
[344448317,1733481040329,-374.07477111,6.999e-05,2]
[344448319,1733481040340,-287373.71561783,6.999e-05,2]
[344448538,1733481042510,-23200.0,6.999e-05,2]
[344448565,1733481042807,-200.0,6.076e-05,2]
[344448567,1733481042817,-5089.62159228,6.999e-05,2]
[344448569,1733481042828,-6991.7580276,6.999e-05,2]
[344448571,1733481042842,-3139.93246147,6.999e-05,2]
[344448574,1733481042853,-849.09900057,6.999e-05,2]
[344448580,1733481042903,-769.42052184,6.999e-05,2]
[344448582,1733481042914,-1248.61067389,6.999e-05,2]
[344448876,1733481045611,-368.77484582,6.973e-05,2]
[344448885,1733481045750,-131.59409909,6.973e-05,2]
[344448887,1733481045760,-500.0,6.973e-05,2]
[344448889,1733481045771,-5230.65590091,6.999e-05,2]
[344448891,1733481045783,-44474.77587762,6.999e-05,2]
[344448893,1733481045798,-253.55,6.999e-05,2]
[344448910,1733481045960,-0.28072,6.999e-05,2]
[344449915,1733481075438,40000.0,0.000106,20]
[344449923,1733481867688,10000.0,0.00012121,24]
[344449924,1733481879349,40000.0,0.00012121,24]
[344449935,1733482231845,-746.82,5.798e-05,2]
[344449936,1733482231897,-452.48371525,5.798e-05,2]
[344449937,1733482231948,-1110.52698775,5.798e-05,2]
[344449938,1733482232000,-4278.787,5.798e-05,2]
[344449983,1733482237794,-3004.60843179,5.798e-05,2]
[344449984,1733482237805,-4151.68749379,5.798e-05,2]
[344449985,1733482237880,-3344.79420031,5.798e-05,2]
[344449987,1733482238583,-3500.87127611,5.798e-05,2]
[344449988,1733482238736,-3309.420895,5.798e-05,2]
[344449989,1733482238747,-300.0,5.898e-05,2]
[344449990,1733482238756,-165.17,5.898e-05,2]
[344449991,1733482238766,-2000.0,5.898e-05,2]
[344449992,1733482238775,-250.0,5.914e-05,2]
[344449993,1733482238784,-878.44,5.945e-05,2]
[344449994,1733482238793,-242.67518108,5.946e-05,2]
[344449995,1733482238805,-65.90481892,5.946e-05,2]
[344449996,1733482238813,-200.0,5.978e-05,2]
[344449997,1733482238823,-213.4456066,5.98e-05,2]
[344450001,1733482239816,-36.5543934,5.98e-05,2]
[344450002,1733482239826,-1500.0,5.989e-05,2]
[344450003,1733482239836,-1130.55,6.017e-05,2]
[344450004,1733482239845,-275.91878726,6.031e-05,2]
[344450008,1733482242705,-492.23121274,6.031e-05,2]
[344450009,1733482242718,-150.0,6.055e-05,2]
[344450010,1733482242727,-437.33,6.062e-05,2]
[344450011,1733482242737,-77.66564184,6.493e-05,2]
[344450012,1733482242752,-422.33435816,6.493e-05,2]
[344450013,1733482242761,-150.0,6.534e-05,2]
[344450014,1733482242770,-300.0,6.725e-05,2]
[344450015,1733482242781,-313.99865296,6.82e-05,2]
[344450016,1733482242906,-123.33134704,6.82e-05,2]
[344450017,1733482242915,-2000.0,6.899e-05,2]
[344450018,1733482242924,-2500.0,6.899e-05,2]
[344450019,1733482242933,-1100.782,6.95e-05,2]
[344450020,1733482242942,-150.0,6.958e-05,2]
[344450021,1733482242952,-904.68665296,6.959e-05,2]
[344450022,1733482242963,-6429.6,6.959e-05,2]
[344450023,1733482243068,-6426.40793814,6.959e-05,2]
[344450024,1733482243080,-3937.3054089,6.959e-05,2]
[344450025,1733482243089,-163.53142627,6.973e-05,2]
[344450026,1733482243098,-159.80686442,6.973e-05,2]
[344450027,1733482243107,-159.4615831,6.973e-05,2]
[344450028,1733482243116,-159.44607854,6.973e-05,2]
[344450029,1733482243125,-500.0,6.973e-05,2]
[344450030,1733482243135,-878.95567015,6.975e-05,2]
[344450031,1733482243147,-1033.51432985,6.975e-05,2]
[344450032,1733482243156,-230.395,6.975e-05,2]
[344450033,1733482243166,-150.0,6.986e-05,2]
[344450035,1733482243176,-300.0,6.998e-05,3]
[344450036,1733482243185,-300.0,6.998e-05,3]
[344450037,1733482243194,-300.0,6.998e-05,3]
[344450038,1733482243204,-300.0,6.998e-05,3]
[344450039,1733482243213,-300.0,6.998e-05,3]
[344450040,1733482243223,-206.02213381,6.998e-05,3]
[344450041,1733482243235,-93.97786619,6.998e-05,3]
[344450042,1733482243246,-300.0,6.998e-05,3]
[344450043,1733482243255,-300.0,6.998e-05,3]
[344450044,1733482243265,-300.0,6.998e-05,2]
[344450045,1733482243274,-300.0,6.998e-05,2]
[344450046,1733482243284,-300.0,6.998e-05,2]
[344450047,1733482243293,-300.0,6.998e-05,2]
[344450048,1733482243302,-300.0,6.998e-05,2]
[344450049,1733482243311,-300.0,6.998e-05,2]
[344450050,1733482243320,-300.0,6.998e-05,2]
[344450051,1733482243329,-300.0,6.998e-05,2]
[344450052,1733482243338,-300.0,6.998e-05,2]
[344450053,1733482243348,-2704.91396274,6.998e-05,2]
[344450055,1733482243357,-895.89,6.998e-05,2]
[344450057,1733482243367,-500.0,6.998e-05,2]
[344450059,1733482243376,-715.0,6.999e-05,2]
[344450061,1733482243386,-1171.91560494,6.999e-05,2]
[344450062,1733482243397,-1630.27186228,6.999e-05,2]
[344450063,1733482243415,-10034.89687398,6.999e-05,2]
[344450064,1733482243426,-5887.9179568,6.999e-05,2]
[344450065,1733482243437,-1274.997702,6.999e-05,2]
[344450066,1733482243446,-2217.327948,6.999e-05,2]
[344450067,1733482243457,-3511.5,6.999e-05,2]
[344450068,1733482243468,-11616.38348601,6.999e-05,2]
[344450069,1733482243518,-2521.61466941,6.999e-05,2]
[344450305,1733482245766,-3500.0,6.999e-05,2]
[344450331,1733482246008,-6319.9082082,6.999e-05,2]
[344450333,1733482246025,-426.9445,6.999e-05,2]
[344451490,1733482835717,200.0,0.0002,120]
[344451491,1733482859204,200.0,0.0002,120]
[344451494,1733483009619,-931.67,5.968e-05,2]
[344451495,1733483009647,-336.65,6.001e-05,2]
[344451496,1733483009668,-300.0,6.011e-05,2]
[344451497,1733483009703,-23900.0,6.012e-05,2]
[344451498,1733483009729,-377.61,6.045e-05,2]
[344451499,1733483009752,-250.0,6.252e-05,2]
[344451500,1733483009774,-200.0,6.263e-05,2]
[344451501,1733483009797,-250.0,6.318e-05,2]
[344451502,1733483009823,-359.99,6.468e-05,2]
[344451503,1733483010175,-3990.00043747,6.5e-05,2]
[344451504,1733483010210,-166.67,6.508e-05,2]
[344451505,1733483010232,-420.0,6.612e-05,2]
[344451506,1733483010255,-377.61,6.8e-05,2]
[344451507,1733483010277,-150.0,6.809e-05,2]
[344451508,1733483010299,-150.0,6.859e-05,2]
[344451509,1733483010320,-35983.0,6.86e-05,2]
[344451510,1733483010347,-2500.0,6.899e-05,2]
[344451511,1733483010369,-2000.0,6.899e-05,2]
[344451512,1733483010390,-4000.0,6.9e-05,2]
[344451513,1733483010414,-1055.081,6.95e-05,2]
[344451514,1733483010435,-500.0,6.973e-05,2]
[344451515,1733483010458,-1529.976,6.973e-05,2]
[344451516,1733483010481,-150.0,6.986e-05,2]
[344451517,1733483010503,-250.17184545,6.998e-05,2]
[344451518,1733483010526,-1971.39,6.998e-05,2]
[344451519,1733483010547,-9999.99,6.998e-05,2]
[344451520,1733483010569,-299.99,6.998e-05,2]
[344451521,1733483010591,-1505.96,6.998e-05,2]
[344451522,1733483010612,-12079.64,6.998e-05,2]
[344451523,1733483010634,-150.99,6.998e-05,2]
[344451524,1733483010655,-2120.16,6.998e-05,2]
[344451525,1733483010677,-150.99,6.998e-05,2]
[344451526,1733483010699,-500.0,6.998e-05,2]
[344451527,1733483010721,-524.0,6.999e-05,2]
[344451528,1733483010743,-220.81,6.999e-05,2]
[344451529,1733483010764,-20000.0,6.999e-05,2]
[344451530,1733483010788,-658689.65071708,6.999e-05,2]
[344451536,1733483432085,-250.0,6.177e-05,2]
[344451537,1733483432096,-250.0,6.364e-05,2]
[344451538,1733483432106,-1098.18386658,6.899e-05,2]
[344451539,1733483432117,-887.80834405,6.899e-05,2]
[344451540,1733483432128,-514.00778937,6.899e-05,2]
[344451541,1733483432138,-14.37177559,6.899e-05,2]
[344451542,1733483432170,-623.49309,6.899e-05,2]
[344451543,1733483432181,-1187.8,6.899e-05,2]
[344451546,1733483432527,-0.1336562,6.899e-05,2]
[344451554,1733483438011,-174.20147821,6.899e-05,2]
[344451555,1733483438022,-1000.0,6.899e-05,2]
[344451556,1733483438036,-171.13961699,6.899e-05,2]
[344451557,1733483438048,-200.95214991,6.899e-05,2]
[344451558,1733483438057,-738.63908671,6.9e-05,2]
[344451559,1733483438070,-285.42771562,6.9e-05,2]
[344451560,1733483438082,-352.35,6.9e-05,2]
[344451561,1733483438123,-733.99255442,6.9e-05,2]
[344451562,1733483438135,-2682.394968,6.9e-05,2]
[344451563,1733483438148,-2185.07426808,6.9e-05,2]
[344451564,1733483438226,-1533.19700289,6.9e-05,2]
[344451565,1733483438236,-3645.02598495,6.93e-05,2]
[344451566,1733483438245,-500.0,6.973e-05,2]
[344451567,1733483438254,-400.13238884,6.973e-05,2]
[344451568,1733483438264,-500.0,6.973e-05,2]
[344451569,1733483438273,-406.10050782,6.973e-05,2]
[344451570,1733483438283,-150.0,6.986e-05,2]
[344451571,1733483438292,-858.56,6.998e-05,2]
[344451572,1733483438306,-150.0,6.998e-05,2]
[344451573,1733483438315,-536.0,6.999e-05,2]
[344451574,1733483438325,-8282.45904066,6.999e-05,2]
[344451575,1733483438337,-266.46,6.999e-05,2]
[344451740,1733483440073,-1597.49325057,6.999e-05,2]
[344451743,1733483440084,-9853.58770877,6.999e-05,2]
[344451745,1733483440094,-8746.46815131,6.999e-05,2]
[344451752,1733483440167,-2388.22134193,6.999e-05,2]
[344451756,1733483440269,-335.0,6.999e-05,2]
[344451765,1733483442904,-621.52556934,6.999e-05,2]
[344451766,1733483442973,-9153.80000013,6.999e-05,2]
[344451767,1733483443047,-34115.72265,6.999e-05,2]
[344451768,1733483443110,-19981.44915897,6.999e-05,2]
[344451769,1733483443121,-17696.25,6.999e-05,2]
[344451770,1733483443170,-4154.94033391,6.999e-05,2]
[344451771,1733483443228,-500.72000001,6.999e-05,2]
[344451775,1733483445995,-291.895,6.999e-05,2]
[344451776,1733483446006,-1129.29626058,6.999e-05,2]
[344451777,1733483446017,-1816.2900003,6.999e-05,2]
[344451778,1733483446028,-646.16247102,6.999e-05,2]
[344451779,1733483446041,-4695.117968,6.999e-05,2]
[344451780,1733483446055,-29748.89619,6.999e-05,2]
[344451781,1733483446092,-5999.99999895,6.999e-05,2]
[344451787,1733483447346,-36770635.58300242,6.999e-05,2]
[344451788,1733483447356,-3024.5,6.999e-05,2]
[344451789,1733483447366,-525063.59074265,6.999e-05,2]
[344451790,1733483447376,-779.31367489,6.999e-05,2]
[344451791,1733483447386,-1987.36942215,6.999e-05,2]
[344451792,1733483447396,-1364.09953499,6.999e-05,2]
[344451793,1733483447406,-34905.42538237,6.999e-05,2]
[344451794,1733483447416,-6905.9464921,6.999e-05,2]
[344451795,1733483447426,-19068.0,6.999e-05,2]
[344451796,1733483447436,-999.99,6.999e-05,2]
[344451797,1733483447446,-77972.33,7e-05,2]
[344451798,1733483447455,-150.99,7e-05,2]
[344451799,1733483447465,-299.99,7e-05,2]
[344451800,1733483447475,-1258.905,7e-05,2]
[344451801,1733483447485,-5964.0,7e-05,2]
[344451802,1733483447495,-239.623,7e-05,2]
[344451803,1733483447504,-13715.0,7e-05,2]
[344451804,1733483447514,-1098.0,7e-05,2]
[344451805,1733483447523,-150.0,7e-05,2]
[344451806,1733483447533,-150.0,7e-05,2]
[344451807,1733483447542,-150.0,7e-05,2]
[344451808,1733483447552,-150.0,7e-05,2]
[344451809,1733483447562,-150.589,7e-05,2]
[344451810,1733483447571,-567.0,7e-05,2]
[344451811,1733483447581,-1262.0,7e-05,2]
[344451812,1733483447592,-211.588,7e-05,2]
[344451813,1733483447602,-195.89,7e-05,2]
[344451814,1733483447612,-631.0,7e-05,2]
[344451815,1733483447622,-2004.0,7e-05,2]
[344451816,1733483447632,-563.0,7e-05,2]
[344451817,1733483447642,-1893.0,7e-05,2]
[344451818,1733483447652,-1252.0,7e-05,2]
[344451819,1733483447662,-3761.0,7e-05,2]
[344451820,1733483447672,-816.0,7e-05,2]
[344451821,1733483447681,-3529.0,7e-05,2]
[344451822,1733483447691,-535.0,7e-05,2]
[344451823,1733483447700,-975.074,7e-05,2]
[344451824,1733483447711,-19919682.77782191,7e-05,2]
[344451825,1733483447720,-18846085.06668516,7e-05,2]
[344451826,1733483447730,-28907.42316132,7e-05,4]
[344451827,1733483447740,-5954868.01470319,7e-05,2]
[344451828,1733483447750,-9000.0,7e-05,2]
[344451829,1733483447760,-5606.21362617,7e-05,2]
[344451830,1733483447769,-1713676.20431459,7e-05,2]
[344451831,1733483447779,-20000.0,7e-05,2]
[344451832,1733483447789,-2649544.79175076,7e-05,2]
[344451833,1733483447799,-250.0,7e-05,2]
[344451834,1733483447813,-250.0,7e-05,2]
[344451835,1733483447822,-250.0,7e-05,2]
[344451836,1733483447831,-250.0,7e-05,2]
[344451837,1733483447841,-250.0,7e-05,2]
[344451838,1733483447852,-250.0,7e-05,2]
[344451839,1733483447862,-250.0,7e-05,2]
[344451840,1733483447873,-250.0,7e-05,2]
[344451841,1733483447882,-250.0,7e-05,2]
[344451842,1733483447892,-250.0,7e-05,2]
[344451843,1733483447902,-250.0,7e-05,2]
[344451844,1733483447911,-250.0,7e-05,2]
[344451845,1733483447921,-250.0,7e-05,2]
[344451846,1733483447930,-250.0,7e-05,2]
[344451847,1733483447940,-250.0,7e-05,2]
[344451848,1733483447950,-250.0,7e-05,2]
[344451849,1733483447959,-250.0,7e-05,2]
[344451850,1733483447969,-250.0,7e-05,2]
[344451851,1733483447978,-250.0,7e-05,2]
[344451852,1733483447988,-250.0,7e-05,2]
[344451853,1733483447997,-250.0,7e-05,2]
[344451854,1733483448007,-250.0,7e-05,2]
[344451855,1733483448016,-250.0,7e-05,2]
[344451856,1733483448030,-250.0,7e-05,2]
[344451857,1733483448039,-250.0,7e-05,2]
[344451858,1733483448049,-250.0,7e-05,2]
[344451859,1733483448059,-250.0,7e-05,2]
[344451860,1733483448069,-250.0,7e-05,2]
[344451861,1733483448079,-250.0,7e-05,2]
[344451862,1733483448089,-250.0,7e-05,2]
[344451863,1733483448098,-250.0,7e-05,2]
[344451864,1733483448110,-250.0,7e-05,2]
[344451865,1733483448120,-250.0,7e-05,2]
[344451866,1733483448129,-250.0,7e-05,2]
[344451867,1733483448138,-250.0,7e-05,2]
[344451868,1733483448148,-250.0,7e-05,2]
[344451869,1733483448158,-250.0,7e-05,2]
[344451870,1733483448168,-250.0,7e-05,2]
[344451871,1733483448177,-250.0,7e-05,2]
[344451872,1733483448187,-438.0,7e-05,2]
[344451873,1733483448196,-4095642.05362276,7e-05,2]
[344451874,1733483448206,-4000.0,7e-05,2]
[344451875,1733483448215,-164.0,7e-05,2]
[344451876,1733483448224,-164.0,7e-05,2]
[344451877,1733483448235,-164.59,7e-05,2]
[344451878,1733483448245,-335.952384,7e-05,2]
[344451879,1733483448255,-335.952384,7e-05,2]
[344451880,1733483448265,-335.952384,7e-05,2]
[344451881,1733483448275,-335.952384,7e-05,2]
[344451882,1733483448285,-335.952384,7e-05,2]
[344451883,1733483448295,-335.952384,7e-05,2]
[344451884,1733483448305,-335.952384,7e-05,2]
[344451885,1733483448314,-335.952384,7e-05,2]
[344451886,1733483448324,-335.952384,7e-05,2]
[344451887,1733483448334,-335.952384,7e-05,2]
[344451888,1733483448343,-335.952384,7e-05,2]
[344451889,1733483448354,-335.952384,7e-05,2]
[344451890,1733483448363,-335.952384,7e-05,2]
[344451891,1733483448373,-335.952384,7e-05,2]
[344451892,1733483448382,-30000.0,7e-05,2]
[344451893,1733483448392,-300.00658567,7e-05,2]
[344451894,1733483448402,-30000.0,7e-05,2]
[344451895,1733483448412,-2999.999999,7e-05,2]
[344451896,1733483448423,-19950.0,7e-05,2]
[344451897,1733483448433,-1281.33262459,7e-05,2]
[344451898,1733483448443,-500.0,7.026e-05,2]
[344451899,1733483448454,-500.0,7.053e-05,2]
[344451900,1733483448465,-150.0,7.072e-05,2]
[344451901,1733483448474,-500.0,7.08e-05,2]
[344451902,1733483448485,-30000.0,7.1e-05,2]
[344451903,1733483448495,-335.952384,7.1e-05,2]
[344451904,1733483448505,-335.952384,7.1e-05,2]
[344451905,1733483448515,-500.0,7.108e-05,2]
[344451906,1733483448526,-500.0,7.135e-05,2]
[344451907,1733483448536,-858.56,7.135e-05,2]
[344451908,1733483448545,-500.0,7.163e-05,2]
[344451909,1733483448557,-500.0,7.19e-05,2]
[344451910,1733483448568,-500.0,7.217e-05,2]
[344451911,1733483448578,-420.43058247,7.228e-05,2]
[344451912,1733483448588,-500.0,7.245e-05,2]
[344451913,1733483448598,-500.0,7.272e-05,2]
[344451914,1733483448608,-858.56,7.272e-05,2]
[344451915,1733483448618,-359.99,7.276e-05,2]
[344451916,1733483448628,-500.0,7.3e-05,2]
[344451917,1733483448638,-500.0,7.327e-05,2]
[344451918,1733483448648,-495.23897504,7.354e-05,2]
[344451919,1733483448658,-242.3,7.397e-05,2]
[344451920,1733483448667,-6772.60433295,7.4e-05,2]
[344451921,1733483448677,-858.56,7.409e-05,2]
[344451922,1733483448687,-77542.68586541,7.499e-05,2]
[344451923,1733483448697,-1000.0,7.521e-05,2]
[344451924,1733483448706,-150.0,7.523e-05,2]
[344451925,1733483448716,-858.56,7.546e-05,2]
[344451926,1733483448725,-377.61,7.556e-05,2]
[344451927,1733483448735,-437.33,7.577e-05,2]
[344451928,1733483448744,-2000.0,7.6e-05,2]
[344451929,1733483448754,-2000.0,7.6e-05,2]
[344451930,1733483448763,-2000.0,7.6e-05,2]
[344451931,1733483448773,-2000.0,7.6e-05,2]
[344451932,1733483448783,-2000.0,7.6e-05,2]
[344451933,1733483448792,-2000.0,7.6e-05,2]
[344451934,1733483448802,-2000.0,7.6e-05,2]
[344451935,1733483448811,-2000.0,7.6e-05,2]
[344451936,1733483448821,-2000.0,7.6e-05,2]
[344451937,1733483448831,-2000.0,7.6e-05,2]
[344451938,1733483448840,-335.952384,7.6e-05,2]
[344451939,1733483448850,-335.952384,7.6e-05,2]
[344451940,1733483448859,-26062.02295271,7.6e-05,2]
[344451941,1733483448869,-420.43058247,7.616e-05,2]
[344451942,1733483448878,-1500.0,7.667e-05,2]
[344451943,1733483448888,-16624.88677559,7.67e-05,2]
[344451944,1733483448898,-335.952384,7.671e-05,2]
[344451945,1733483448908,-335.95239,7.671e-05,2]
[344451946,1733483448917,-1000.0,7.671e-05,2]
[344451947,1733483448927,-1000.0,7.671e-05,2]
[344451948,1733483448936,-1000.0,7.671e-05,2]
[344451949,1733483448945,-1000.0,7.671e-05,2]
[344451950,1733483448955,-1000.0,7.671e-05,2]
[344451951,1733483448965,-1000.0,7.671e-05,2]
[344451952,1733483448975,-1000.0,7.671e-05,2]
[344451953,1733483448984,-1000.0,7.671e-05,2]
[344451954,1733483448996,-1006.0,7.671e-05,2]
[344451955,1733483449006,-1000.0,7.671e-05,2]
[344451956,1733483449016,-1000.0,7.671e-05,2]
[344451957,1733483449027,-1000.0,7.671e-05,2]
[344451958,1733483449039,-1000.0,7.671e-05,2]
[344451959,1733483449048,-1000.0,7.671e-05,2]
[344451960,1733483449065,-1000.0,7.671e-05,2]
[344451961,1733483449075,-1000.0,7.671e-05,2]
[344451962,1733483449085,-1000.0,7.671e-05,2]
[344451963,1733483449095,-1000.0,7.671e-05,2]
[344451964,1733483449104,-1000.0,7.671e-05,2]
[344451965,1733483449116,-1000.0,7.671e-05,2]
[344451966,1733483449126,-1000.0,7.671e-05,2]
[344451967,1733483449136,-1000.0,7.671e-05,2]
[344451968,1733483449146,-1000.0,7.671e-05,2]
[344451969,1733483449155,-1000.0,7.671e-05,2]
[344451970,1733483449165,-1000.0,7.671e-05,2]
[344451971,1733483449174,-1000.0,7.671e-05,2]
[344451972,1733483449184,-1000.0,7.671e-05,2]
[344451973,1733483449194,-1000.0,7.671e-05,2]
[344451974,1733483449204,-1000.0,7.671e-05,2]
[344451975,1733483449214,-1000.0,7.671e-05,2]
[344451976,1733483449223,-1000.0,7.671e-05,2]
[344451977,1733483449233,-1000.0,7.671e-05,2]
[344451978,1733483449242,-1000.0,7.671e-05,2]
[344451979,1733483449252,-1000.0,7.671e-05,2]
[344451980,1733483449263,-1000.0,7.671e-05,2]
[344451981,1733483449273,-1000.0,7.671e-05,2]
[344451982,1733483449283,-1000.0,7.671e-05,2]
[344451983,1733483449294,-1000.0,7.671e-05,2]
[344451984,1733483449305,-1000.0,7.671e-05,2]
[344451985,1733483449315,-1000.0,7.671e-05,2]
[344451986,1733483449326,-1000.0,7.671e-05,2]
[344451987,1733483449336,-1000.0,7.671e-05,2]
[344451988,1733483449346,-1000.0,7.671e-05,2]
[344451989,1733483449356,-1000.0,7.671e-05,2]
[344451990,1733483449365,-1000.0,7.671e-05,2]
[344451991,1733483449375,-1000.0,7.671e-05,2]
[344451992,1733483449385,-1000.0,7.671e-05,2]
[344451993,1733483449395,-1000.0,7.671e-05,2]
[344451994,1733483449405,-1000.0,7.671e-05,2]